Cogmind - Beta 14 @@@ ROGUE MODE // 2024.12.29 @ 10:57:26 Player: sag Result: Destroyed self with Grenade Launcher Performance ------------- Evolutions (1) 500 Regions Visited (3) 600 Robots Destroyed (21) 105 Value Destroyed (552) 552 Prototype IDs (0) 0 Alien Tech Used (0) 0 Bonus (0) 0 TOTAL SCORE: 1757 Bonus ------- None Cogmind --------- Core Integrity 0/400 Matter 280/300 Energy 100/100 System Corruption 2% Temperature Warm (195) Movement Treading (160) Location -9/Materials Parts ------- > --- POWER (2) -------- (None) > --- PROPULSION (3) --- Light Treads > --- UTILITY (2) ------ (None) > --- WEAPON (2) ------- Grenade Launcher > --- INVENTORY (5) ---- Flight Unit Medium Matter Pod (100) Light Assault Rifle Light Assault Rifle Peak State ------------ > --- POWER ------------ Ion Engine > --- PROPULSION ------- Flight Unit VTOL Module VTOL Module > --- UTILITY ---------- Heat Sink Medium Matter Pod > --- WEAPON ----------- Light Assault Rifle Light Assault Rifle > --- INVENTORY -------- Flight Unit Medium Matter Pod Light Assault Rifle Grenade Launcher [Rating: 10] Favorites ----------- Power Light Ion Engine Engine Light Ion Engine Propulsion Aluminum Leg Treads Light Treads Leg Aluminum Leg Flight Unit Flight Unit Utility Medium Matter Pod Device Heat Sink Storage Medium Matter Pod Protection Light Armor Plating Weapon Light Assault Rifle Energy Gun Beam Rifle Ballistic Gun Light Assault Rifle Launcher Grenade Launcher Build | -11 -10 -10 -9 ------- Run | Yrd Mat Min Mat Slots Evolved 2 | . . . 2 Power 1 | . . . 1 Propulsion 1 | . . . 1 Utility . | . . . . Weapon . | . . . . Parts Attached 27 | 5 7 4 11 Power 4 | 1 1 1 1 Engine 4 | 1 1 1 1 Core . | . . . . Reactor . | . . . . Propulsion 10 | 2 2 1 5 Treads 2 | . . 1 1 Leg 2 | 2 . . . Wheel . | . . . . Hover . | . . . . Flight 6 | . 2 . 4 Utility 4 | . 2 1 1 Device 1 | . . 1 . Storage 2 | . 2 . . Processor . | . . . . Hackware . | . . . . Protection 1 | . . . 1 Artifact . | . . . . Weapon 9 | 2 2 1 4 Energy Gun 2 | . . . 2 Energy Cannon . | . . . . Ballistic Gun 5 | 2 1 1 1 Ballistic Cannon . | . . . . Launcher 2 | . 1 . 1 Special Weapon . | . . . . Impact Weapon . | . . . . Slashing Weapon . | . . . . Piercing Weapon . | . . . . Special Melee Weapon . | . . . . Unidentified Prototypes . | . . . . Parts Lost 10 | . . . 10 Power 2 | . . . 2 Propulsion 2 | . . . 2 Utility 3 | . . . 3 Weapon 3 | . . . 3 Highest Loss Streak 5 | . . . 5 To Critical Strikes . | . . . . Average Slot Usage (%) 69 | . 72 85 50 Engine 10 | . 14 14 4 Treads 4 | . . 10 2 Leg 4 | . 19 . . Flight 8 | . 8 7 10 Device 5 | . . 10 2 Storage 9 | . 1 14 10 Energy Gun 4 | . . . 13 Ballistic Gun 18 | . 23 28 4 Launcher 1 | . 4 . . Peak Build Rating 10 | 5 7 7 10 Average Rating 5 | 3 5 6 6 On Entrance 4 | . 5 7 6 Naked Turns . | . . . . Heaviest Build 16 | 5 9 10 16 Greatest Support 20 | 20 20 20 20 Greatest Overweight (x) 3 | . 1 . 3 Average Overweight (x) . | . . . . Largest Inventory Capacity 5 | 5 5 5 5 Average Capacity 5 | 5 5 5 5 Most Carried 5 | 5 5 5 5 Average Carried 4 | 2 4 4 4 Final Capacity 5 | 5 5 5 5 Final Carried 5 | 5 3 5 4 Class Distribution -------------------- 93% | Mutant 6% | Scavenger-Mutant Dominant Class ---------------- Mutant | -10/Materials Mutant | -10/Mines Mutant | -9/Materials Resources | -11 -10 -10 -9 ----------- Run | Yrd Mat Min Mat Matter Collected 740 | 260 77 196 207 Remotely . | . . . . Salvage Created 636 | 47 26 130 433 Parts 53 | 3 4 13 33 Haulers Intercepted . | . . . . Recyclers Shooed . | . . . . Parts Field Recycled . | . . . . Retrieved Matter . | . . . . Parts Self-Destructed . | . . . . Prevented . | . . . . Kills | -11 -10 -10 -9 ------- Run | Yrd Mat Min Mat Combat Hostiles Destroyed 17 | 1 2 5 9 Guns 13 | 1 2 5 5 AOE 3 | . . . 3 Classes Destroyed 7 | 1 1 . 5 Worker 2 | . . . 2 Builder 1 | . . . 1 Operator 1 | . . . 1 Swarmer 5 | . 2 3 . Grunt 8 | 1 . 2 5 Brawler 1 | . . . 1 Sentry 3 | . . . 3 Best Kill Streak 7 | 1 2 5 7 Combat Bots Only 5 | 1 2 5 4 Max Kills in Single Turn 4 | 1 1 1 4 Gunslinging . | . . . . Exploded 2 | . . . 2 Melee . | . . . . Uniques/NPCs Destroyed . | . . . . Combat | -11 -10 -10 -9 -------- Run | Yrd Mat Min Mat Hostile Shots Fired 160 | 3 21 29 107 Missed 53 | 1 8 12 32 Damage Taken 1396 | 23 104 177 1092 Core 513 | 23 7 73 410 Absorbed by Shields . | . . . . Core Remaining (%) 74 | 90 . 58 . Volleys Fired 90 | 5 11 19 55 Largest 2 | 2 2 2 2 Hottest 96 | 40 50 40 96 Shots Fired 146 | 10 22 38 76 Gun 142 | 10 21 38 73 Cannon . | . . . . Launcher 4 | . 1 . 3 Special . | . . . . Kinetic 104 | 10 21 38 35 Thermal 38 | . . . 38 Explosive 4 | . 1 . 3 Electromagnetic . | . . . . Robot Hit Streak 10 | 3 3 7 10 Robot Miss Streak 8 | 2 8 6 3 Penetration Max . | . . . . Secondary Targets 1 | . 1 . . Max Gunslinging Chain 1 | . 1 . . Shots Hit Robots 89 | 6 6 19 58 Core Hits 41 | 3 3 11 24 Critical Kills 1 | . 1 . . Critical Parts Destroyed 1 | . . . 1 Critical Strikes 3 | . 1 . 2 Burn 1 | . . . 1 Destroy 2 | . 1 . 1 Melee Attacks . | . . . . Impact . | . . . . Slashing . | . . . . Piercing . | . . . . Sneak Attacks . | . . . . Combat Hostiles . | . . . . Follow-up Attacks . | . . . . Damage Inflicted 1188 | 47 51 157 933 Guns 822 | 47 51 157 567 Cannons . | . . . . Explosions 362 | . . . 362 Melee . | . . . . Ramming 4 | . . . 4 Kinetic 476 | 47 51 157 221 Thermal 346 | . . . 346 Explosive 362 | . . . 362 Electromagnetic . | . . . . Impact . | . . . . Slashing . | . . . . Piercing . | . . . . Highest Corruption 2 | . . . 2 Average Corruption 2 | . . . 2 Corruption Purged . | . . . . Corruption Blocked . | . . . . Overload Shots . | . . . . Overflow Damage 17 | . . . 17 Projectiles . | . . . . Explosions 17 | . . . 17 Melee . | . . . . Knockbacks . | . . . . Impact . | . . . . Kinetic . | . . . . Secondary . | . . . . Self-Inflicted Damage 84 | . . . 84 Shots 3 | . . . 3 Rammed 2 | . . . 2 Targets Rammed 2 | . . . 2 Kicked . | . . . . Crushed . | . . . . Highest Temperature 332 | 6 10 43 332 Average Temperature 57 | 6 5 16 83 Received Heat Transfer 543 | 12 . 69 462 Effects 1 | . . . 1 Damage (minor) 1 | . . . 1 Siege Activations . | . . . . Robots Corrupted . | . . . . Combat Hostiles . | . . . . Parts Fried . | . . . . Impact Corruptions . | . . . . Robots Melted 1 | . . . 1 Combat Hostiles 1 | . . . 1 Parts Melted . | . . . . Heat Transferred 917 | . . . 917 Parts Sabotaged . | . . . . Parts Stolen . | . . . . Parts Stripped . | . . . . Power Chain Reactions . | . . . . Alert | -11 -10 -10 -9 ------- Run | Yrd Mat Min Mat Peak Influence 261 | 20 68 221 261 Initial 85 | . 13 26 85 Average 107 | 2 36 177 145 Maximum Alert Level 1 | . . 1 1 Low Security (%) 68 | 100 100 24 74 Level 1 31 | . . 75 25 Level 2 . | . . . . Level 3 . | . . . . Level 4 . | . . . . Level 5 . | . . . . High Security . | . . . . Max Security . | . . . . Squads Dispatched 3 | . 1 . 2 Investigation 1 | . 1 . . Extermination . | . . . . Reinforcement 2 | . . . 2 Assault . | . . . . Garrison . | . . . . Intercept . | . . . . Searches Triggered . | . . . . Construction Impeded 1 | . . . 1 Haulers Reinforced . | . . . . Active Scanning Responses . | . . . . Cargo Convoy Interrupts . | . . . . Stealth | -11 -10 -10 -9 --------- Run | Yrd Mat Min Mat Distress Signals 1 | . 1 . . Communications Jammed . | . . . . Distress Signals . | . . . . Times Spotted 30 | 1 6 10 13 Peak Tracking Total 5 | 1 4 5 5 Tactical Retreats 2 | . . 2 . Traps | -11 -10 -10 -9 ------- Run | Yrd Mat Min Mat Traps Triggered 1 | . 1 . . Indirectly . | . . . . Trap Hack Attempts . | . . . . Triggered . | . . . . Disarmed . | . . . . Reprogrammed . | . . . . Reused . | . . . . Traps Extracted . | . . . . Installed . | . . . . Triggered . | . . . . Machines | -11 -10 -10 -9 ---------- Run | Yrd Mat Min Mat Machines Disabled 1 | . 1 . . Max in Single Turn 1 | . 1 . . Machines Repaired . | . . . . Machines Dismantled . | . . . . Machines Sabotaged . | . . . . Overloaded Fab Kills . | . . . . Hacking | -11 -10 -10 -9 --------- Run | Yrd Mat Min Mat Machines Accessed . | . . . . Terminals . | . . . . Fabricators . | . . . . Repair Stations . | . . . . Recycling Units . | . . . . Scanalyzers . | . . . . Garrison Access . | . . . . Total Hacks . | . . . . Successful . | . . . . Failed . | . . . . Catastrophic . | . . . . Database Lockouts . | . . . . Manual . | . . . . Terminals . | . . . . Fabricators . | . . . . Repair Stations . | . . . . Recycling Units . | . . . . Scanalyzers . | . . . . Garrison Access . | . . . . Terminal Hacks . | . . . . Fabricator Hacks . | . . . . Repair Station Hacks . | . . . . Recycling Unit Hacks . | . . . . Scanalyzer . | . . . . Garrison Access Hacks . | . . . . Unauthorized Hacks . | . . . . Terminals . | . . . . Fabricators . | . . . . Repair Stations . | . . . . Recycling Units . | . . . . Scanalyzers . | . . . . Garrison Access . | . . . . Data Cores Recovered . | . . . . Used . | . . . . Hacking Detections . | . . . . Full Trace Events . | . . . . Feedback Events . | . . . . Feedback Blocked . | . . . . Robot Schematics Acquired . | . . . . Robots Built . | . . . . Authchips . | . . . . Time . | . . . . Total Robot Build Rating . | . . . . Part Schematics Acquired . | . . . . Parts Built . | . . . . Authchips . | . . . . Time . | . . . . Total Part Build Rating . | . . . . Parts Repaired . | . . . . Time . | . . . . Parts Recycled . | . . . . Recycled Matter . | . . . . Retrieved Matter . | . . . . Retrieved Components . | . . . . Parts Scanalyzed . | . . . . Part Schematics Acquired . | . . . . Parts Damaged . | . . . . Bothacking | -11 -10 -10 -9 ------------ Run | Yrd Mat Min Mat Used RIF Installer . | . . . . Robots Hacked . | . . . . Non-combat . | . . . . Combat . | . . . . Robot Hacks Applied . | . . . . Relay Couplers Released . | . . . . Fabnet Peak Effective % . | . . . . Robots Rewired . | . . . . Allies Hacked . | . . . . Hacks Repelled . | . . . . Allies | -11 -10 -10 -9 -------- Run | Yrd Mat Min Mat Total Allies . | . . . . Largest Group . | . . . . Highest-Rated Group . | . . . . Highest-Rated Ally . | . . . . Total Orders . | . . . . Ally Attacks . | . . . . Total Damage . | . . . . Kills . | . . . . Allies Corrupted . | . . . . Allies Melted . | . . . . Intel | -11 -10 -10 -9 ------- Run | Yrd Mat Min Mat Robot Analysis Total . | . . . . Derelict Logs Recovered . | . . . . Drone Launches . | . . . . Drone Recoveries . | . . . . Exploration | -11 -10 -10 -9 ------------- Run | Yrd Mat Min Mat Turns Passed 921 | 160 197 294 270 Spaces Moved 636 | 119 189 224 104 Core 29 | 29 . . . Treads 136 | . . 124 12 Legs 176 | 90 86 . . Wheels . | . . . . Hover . | . . . . Flight 295 | . 103 100 92 Fastest Speed 32 | 50 37 37 32 Average Speed 99 | 102 80 105 121 Slowest Speed 275 | 120 130 160 275 Overloaded Moves . | . . . . Propulsion Burnouts . | . . . . Robots Hopped . | . . . . Cave-ins Triggered . | . . . . Exploration Rate (%) 18 | 6 29 25 14 Regions Visited 3 Branch Regions 1 Pre-discovered Areas . | . . . . Known Exits Taken . | . . . . Unknown Exits Taken 3 | 1 1 1 . Scrap Searched 1 | . . 1 . Spaces Dug . | . . . . Terrain Destroyed 15 | . . . 15 Melee . | . . . . Projectile . | . . . . AOE 15 | . . . 15 Terrain Rammed . | . . . . Walls Destroyed . | . . . . Machines Disabled . | . . . . Actions | -11 -10 -10 -9 --------- Run | Yrd Mat Min Mat Total 798 | 148 218 254 178 Wait 10 | 10 . . . Move 633 | 118 188 223 104 Hop . | . . . . Pick Up 20 | 10 3 3 4 Fast Attach 7 | . 4 . 3 Attach 13 | 5 1 2 5 Detach 4 | . 1 3 . Swap 7 | . 2 2 3 Drop 12 | . 8 2 2 Fire 90 | 5 11 19 55 Melee . | . . . . Ram 1 | . . . 1 Kick . | . . . . Crush 1 | . . . 1 Escape Stasis . | . . . . Rewire . | . . . . Trap . | . . . . Miscellaneous . | . . . . Route ------- -11/Scrapyard -10/Materials (discovered 2 exits: [*Mat] / [*Min]) -10/Mines (discovered 2 exits: [*Mat x2]) -9/Materials (discovered 1 exit: [*Sto]) History --------- Turn | Location | Event 2 | -11/Scrapyard | Met Revision 17 132 | -11/Scrapyard | Discovered new exit (range 8) 161 | -11/Scrapyard | Entered Materials 327 | -10/Materials | Build established: Mutant 328 | -10/Materials | Discovered new exit (range 9) 334 | -10/Materials | Discovered new exit (range 11) 358 | -10/Materials | Entered Mines 382 | -10/Mines | Discovered new exit (range 10) 555 | -10/Mines | Discovered new exit (range 9) 652 | -10/Mines | Entered Materials 652 | -9/Materials | Evolved 2 slots: Power x1, Propulsion x1 675 | -9/Materials | Discovered new exit (range 14) 734 | -9/Materials | Core integrity fell below 50% 753 | -9/Materials | Lost 5 parts (1p2n1u1w) 914 | -9/Materials | Core integrity fell below 20% 922 | -9/Materials | Destroyed self with Grenade Launcher Last Messages --------------- Overheating: Lgt. Treads damaged (-31). K-01 Serf collects debris. R-06 Scavenger collects Heat Sink. Critical hit (Burn: +37). Imp. Ion Engine destroyed. Sml. Laser destroyed. G-34 Mercenary destroyed. K-01 Serf destroyed. G-34 Mercenary destroyed. O-16 Technician destroyed. Lgt. Armor Plating destroyed. R-06 Scavenger collects VTOL Module. Acquired 15 matter. U-05 Engineer builds a Wall. Slammed into G-34 Mercenary. ALERT: Construction progress impeded, dispatching reinforcements to local area. G-47 Trooper destroyed. Destroyed Welding Torch. U-05 Engineer destroyed. [Achievement: First Step to Greatness] Map ----- +----------------------------------------------------+ | ???????????????????????????????????????????????? | | ???????????????????????????????????????????????? | | ???????????????????????????????????????????????? | | ???????????????????????????????????????????????? | | ???????????????????????????????????????????????? | | ???????????????????????????????????????????????? | | ???????????????????????????????????????????????? | | ???????????????????????????????????????????????? | | ???????????????????????????????????????????????? | | ???????????????????????????????????????????????? | | ???????????????????????????????????????????????? | | ???????????????????????????????????????????????? | | ?????????????????? ??????????????????????????? | | ?????????????????# ??????????????????????????? | | ?????????????????# ??##??????????????????????? | | ?????????????????# ?? ???? #???????????????? | | ?????????????????# ?? ??? #???????????????? | | ?????????????????# ## ? #???????????????? | | ?????????????????# ## "" #???????????????? | | ?????????????????# ## "" ][ #???????????????? | | ?????????????????# ## "T ] #???????????????? | | ?????????????????# # "" #???????????????? | | ?????????????????# ## "" #???????????????? | | ????????????????## # #???????????????? | | ????????????????# ! g% = #######???????????? | | ????????????????# [ *=@*%! k t ????????? | | ????????????????# =% ==%%% m ????????? | | ????????????????# =%/ k ????????? | | ????????????????# * ##########?????????? | | ????????????????## ### ####??????????????????? | | ?????????????????# #??##?????????????????????? | | ?????????????????# %#???? ???????????????????? | | ?????????????????+ #??"" "???????????????????? | | ???????????????? # # """ ""??????????????????? | | ??????????????? # + """ ""??????????????????? | | ?????????????? ?# # ???????????????? | | ?????????????##??# #?? ?????????????? | | ?????????????????# #????#########????????????? | | ?????????????????# #???? #???????????????? | | ??????????# ###### #?? #???????????????? | | ??????????# # #???????????????? | | ??????????+ + #???????????????? | | ??????????# # #???????????????? | | ??????????###+##### ##?? #???????????????? | | ??????????????????# #????? #???????????????? | | ??????????????????# #??????? #???????????????? | | ??????????????????# #?????????##???????????????? | | ??????????????????# #??????????????????????????? | | ???????????????? ## ####???????????????????????? | | ???????????????" # #???????????????????????? | +----------------------------------------------------+ Best States ------------- Heat Dissipation 38 Energy Generation 12 Energy Capacity 265 Matter Stores 400 Matter Capacity 500 Sight Range 16 Terrain Scan Density 10 Armor Coverage 150 Evasion (%) 63 Recoil Reduction 1 Item Schematics ----------------- None Robot Schematics ------------------ None Fabricated ------------ Nothing Alien Tech Used ----------------- None Achievements -------------- Crack Shot First Step to Greatness It's Just You Uninvited Guest Challenges ------------ None Game ------ Seed AuthchipAlphaFemtoactuators Manual? 0 Play Time 00:33:36 Cumulative 0.5 hours Start 2024.12.29 @ 03:34:45 End 2024.12.29 @ 10:57:26 Sessions 1 Manual Loads 0 Difficulty Rogue Special Mode None Game No. 1 Rogue 1 Adventurer 0 Explorer 0 Win Type - Total 0 Types 0/0/0/0/0/0/0/0/0 Lore% 0 Gallery% 1 Achievement% 1 Wizard Run 0 Options --------- Layout 1 ASCII 0 Keyboard 0 Movement Arrows Keybinds 0 Fullscreen 2 Font 32/SmallcapsGlow Map View 65x17 Zoom Use 65% Tactical HUD 0 Map Filters NONE Filters NONE Steam 1 RUN: d514df9a-e2e4-4978-8407-96de98346aba